Workbook

Sheet Лист1
A2: 3 ПЛАН УЧЕБНОГО ПРОЦЕССА
A4: Индексы | B4: Наименование учебных циклов, дисциплин, профессиональных модулей, МДК, практик | C4: Формы промежуточной аттестации | D4: Учебная наагрузка обучающихся | K4: Распеределние обязательной учебной нагрузки по курсам и семестрам
D5: максимальная | E5: самостоятельная работа | F5: Обязательная | I5: консультации | J5: промежуточная аттестация
F6: всего учебных занятий | G6: в т.ч. | K6: 1 курс | M6: 2 курс | O6: 3 курс | Q6: 4 курс
G7: лабораторные и практические работы | H7: курсовые работы | K7: 1 сем. 17 нед. | L7: 2 сем. 22 нед. | M7: 3 сем. 17 нед. (16+1ПА) | N7: 4 сем. 25 нед. (23+2ПА) | O7: 5 сем. 17 нед. (16+1ПА) | P7: 6 сем. 27 нед. (23+2ПА) | Q7: 7 сем. 17 нед. (16+1ПА) | R7: 8 сем. 7 нед.
A8: 1 | B8: 2 | C8: 3 | D8: 4 | E8: 5 | F8: 6 | G8: 7 | H8: 8 | I8: 9 | J8: 10 | K8: 11 | L8: 12 | M8: 13 | N8: 14 | O8: 15 | P8: 16 | Q8: 17 | R8: 18
A9: ОУД.00 | B9: Общеобразовательные учебные дисциплины (общие и по выбору) | C9: -З/11ДЗ/5Э | D9: =SUM(D10:D23) -> 1476 | F9: =SUM(F10:F23) -> 1476 | G9: 609 | I9: 42 | J9: 30 | K9: 612 | L9: 792
A10: ООД.01 | B10: Русский язык | C10: -;Э | D10: 79 | F10: 79 | G10: 28 | I10: 12 | J10: 6 | K10: 17 | L10: 44
A11: ООД.02 | B11: Литература | C11: -;Э | D11: 146 | F11: 146 | I11: 6 | J11: 6 | K11: 68 | L11: 66
A12: ООД.03 | B12: История | C12: -;ДЗ | D12: 131 | F12: 131 | G12: 46 | K12: 51 | L12: 80
A13: ООД.04 | B13: Обществознание | C13: -;Э | D13: 146 | F13: 146 | G13: 68 | I13: 6 | J13: 6 | K13: 68 | L13: 66
A14: ООД.05 | B14: География | C14: ДЗ | D14: 66 | F14: 66 | G14: 28 | K14: 0 | L14: 66
A15: ООД.06 | B15: Иностранный язык | C15: -;ДЗ | D15: 103 | F15: 103 | G15: 103 | K15: 51 | L15: 52
A16: ООД.07 | B16: Математика | C16: ДЗ;Э | D16: 230 | F16: 230 | G16: 50 | I16: 12 | J16: 6 | K16: 102 | L16: 110
A17: ООД.08 | B17: Информатика | C17: -;Э | D17: 151 | F17: 151 | G17: 114 | I17: 6 | J17: 6 | K17: 51 | L17: 88
A18: ООД.09 | B18: Физическая культура | C18: ДЗ;ДЗ | D18: 78 | F18: 78 | G18: 58 | K18: 34 | L18: 44
A19: ООД.10 | B19: ОБЖ | C19: ДЗ | D19: 68 | F19: 68 | G19: 46 | K19: 68 | L19: 0
A20: ООД.11 | B20: Физика | C20: -;ДЗ | D20: 100 | F20: 100 | G20: 14 | K20: 34 | L20: 66
A21: ООД.12 | B21: Химия | C21: ДЗ | D21: 68 | F21: 68 | G21: 30 | K21: 68 | L21: 0
A22: ООД.13 | B22: Биология | C22: ДЗ | D22: 66 | F22: 66 | G22: 24 | K22: 0 | L22: 66
A23: ООД.14 | B23: Основы проектной деятельности | C23: ДЗ | D23: 44 | F23: 44 | K23: 0 | L23: 44
A24: ОГСЭ.00 | B24: Общий гуманитарный и социально-экономический учебный цикл | C24: -З/12ДЗ/2Э | D24: 1005 | E24: 335 | F24: 670 | G24: =SUM(G25:G32) -> 394 | M24: 336 | N24: 230 | O24: 60 | P24: 72 | Q24: 52
A25: ОГСЭ.01 | B25: Основы философии | C25: ДЗ | D25: 60 | E25: 12 | F25: 48 | M25: 48
A26: ОГСЭ.02 | B26: История | C26: Э | D26: 60 | E26: 12 | F26: 48 | M26: 48
A27: ОГСЭ.03 | B27: Иностранный язык | C27: -;-;ДЗ;ДЗ;ДЗ | D27: 194 | E27: 24 | F27: 170 | G27: 164 | M27: 32 | N27: 46 | O27: 30 | P27: 36 | Q27: 26
A28: ОГСЭ.04 | B28: Физическая культура | C28: ДЗ;ДЗ;ДЗ;ДЗ;ДЗ | D28: 340 | E28: 170 | F28: 170 | G28: 160 | M28: 32 | N28: 46 | O28: 30 | P28: 36 | Q28: 26
A29: ОГСЭ.05 | B29: Русский язык и культура речи | C29: Э | D29: 72 | E29: 24 | F29: 48 | G29: 22 | M29: 48
A30: ОГСЭ.06 | B30: Психология общения | C30: ДЗ | D30: 72 | E30: 24 | F30: 48 | G30: 16 | M30: 48
A31: ОГСЭ.07 | B31: Финансовая грамотность | C31: ДЗ | D31: 138 | E31: 46 | F31: 92 | G31: 10 | N31: 92
A32: ОГСЭ.08 | B32: Основы бережливого производства | C32: ДЗ | D32: 69 | E32: 23 | F32: 46 | G32: 22 | N32: 46
A33: ЕН.00 | B33: Математический общий естественно-научный учебный цикл | C33: -З/1ДЗ/-Э | D33: 120 | E33: 40 | F33: 80 | G33: 60 | M33: 80
A34: ЕН.01 | B34: Информатика и информационные технологии в профессиональной деятельности | C34: ДЗ | D34: 120 | E34: 40 | F34: 80 | G34: 60 | M34: 80
A35: П.00 | B35: Профессиональный учебный цикл | C35: -З/14ДЗ/12Э | D35: =SUM(D48+D36) -> 3789 | E35: =SUM(E48+E36) -> 1155 | F35: 2634 | G35: 1211 | H35: 64 | M35: =SUM(M48+M36) -> 240 | N35: =SUM(N48+N36) -> 598 | O35: 516 | P35: 756 | Q35: 524
A36: ОП.00 | B36: Общепрофессиональные дисциплины | C36: -З/5ДЗ/7Э | D36: 1791 | E36: 597 | F36: 1194 | G36: 547 | H36: 30 | M36: 124 | N36: 414 | O36: 248 | P36: 320 | Q36: 88
A37: ОП.01 | B37: Теория государства и права | C37: ДЗ | D37: 114 | E37: 38 | F37: 76 | G37: 28 | M37: 76
A38: ОП.02 | B38: Конституционное право России | C38: Э | D38: 103 | E38: 34 | F38: 69 | G38: 43 | N38: 69
A39: ОП.03 | B39: Административное право | C39: ДЗ | D39: 72 | E39: 24 | F39: 48 | G39: 18 | M39: 48
A40: ОП.04 | B40: Гражданское право и гражданский процесс | C40: Э | D40: 270 | E40: 90 | F40: 180 | G40: 60 | O40: 180
A41: ОП.05 | B41: Экологическое право | C41: ДЗ | D41: 69 | E41: 23 | F41: 46 | G41: 12 | N41: 46
A42: ОП.06 | B42: Криминология и предупреждение преступлений | C42: Э;ДЗ | D42: 372 | E42: 124 | F42: 248 | G42: 172 | P42: 160 | Q42: 88
A43: ОП.07 | B43: Уголовное право | C43: Э | D43: 138 | E43: 46 | F43: 92 | G43: 10 | N43: 92
A44: ОП.08 | B44: Уголовный процесс | C44: Э | D44: 104 | E44: 35 | F44: 69 | G44: 18 | N44: 69
A45: ОП.09 | B45: Криминалистика | C45: Э | D45: 240 | E45: 80 | F45: 160 | G45: 84 | H45: 30 | P45: 160
A46: ОП.10 | B46: Безопасность жизнедеятельности | C46: ДЗ | D46: 102 | E46: 34 | F46: 68 | G46: 48 | O46: 68
A47: ОП.11 | B47: Трудовое право | C47: Э | D47: 207 | E47: 69 | F47: 138 | G47: 54 | N47: 138
A48: ПМ.00 | B48: Профессиональные модули | C48: -З/9ДЗ/5Э | D48: =SUM(D57+D49) -> 1998 | E48: =SUM(E57+E49) -> 558 | F48: 1440 | G48: =SUM(G57+G49) -> 664 | H48: =SUM(H57+H49) -> 34 | M48: 116 | N48: 184 | O48: 268 | P48: 436 | Q48: 436
A49: ПМ.01 | B49: Оперативно-служебная деятельность | C49: Э | D49: 1608 | E49: 452 | F49: 1156 | G49: 532 | M49: =SUM(M50:M56) -> 116 | N49: =SUM(N50:N56) -> 184 | O49: 156 | P49: 364 | Q49: 336
A50: МДК 01.01 | B50: Тактико-специальная подготовка | C50: ДЗ | D50: 231 | E50: 77 | F50: 154 | G50: 68 | Q50: 154
A51: МДК 01.02 | B51: Огневая подготовка | C51: -;ДЗ | D51: 375 | E51: 125 | F51: 250 | G51: 168 | P51: 104 | Q51: 146
A52: МДК 01.03 | B52: Начальная профессиональная подготовка и введение в специальность | C52: -;ДЗ | D52: 243 | E52: 81 | F52: 162 | G52: 116 | M52: 116 | N52: 46
A53: МДК 01.04 | B53: Специальная техника | C53: Э;Э | D53: 300 | E53: 100 | F53: 200 | G53: 104 | O53: 120 | P53: 80
A54: МДК 01.05 | B54: Делопроизводство и режим секретности | C54: ДЗ | D54: 207 | E54: 69 | F54: 138 | G54: 76 | N54: 138
A55: УП.01 | B55: Учебная практикка по модулю | C55: -;ДЗ | D55: 108 | F55: 108 | O55: 36 | P55: 72
A56: ПП.01 | B56: Производственная практика по модулю | C56: ДЗ;ДЗ | D56: 144 | F56: 144 | P56: 108 | Q56: 36
A57: ПМ.02 | B57: Организационно-управленческая деятельность | C57: Э | D57: 390 | E57: 106 | F57: 284 | G57: 132 | H57: 34 | O57: =SUM(O58:O60) -> 112 | P57: 72 | Q57: 100
A58: МДК 02.01 | B58: Основы управления в правоохранителных органах | C58: -;-;Э | D58: 318 | E58: 106 | F58: 212 | G58: 132 | H58: 34 | O58: 112 | P58: 72 | Q58: 28
A59: УП.02 | B59: Учебная практикка по модулю | C59: ДЗ | D59: 36 | F59: 36 | Q59: 36
A60: ПП.02 | B60: Производственная практика по модулю | C60: ДЗ | D60: 36 | F60: 36 | Q60: 36
B61: Всего | D61: =SUM(D48+D36+D33+D24) -> 4914 | E61: =SUM(E48+E36+E33+E24) -> 1530 | F61: =SUM(F48+F36+F33+F24) -> 3384 | G61: =SUM(G48+G36+G33+G24) -> 1665 | H61: =SUM(H57+H36) -> 64 | I61: =SUM(I10:I23) -> 42 | J61: =SUM(J10:J17) -> 30
A62: ПДП | B62: Производственная практика (преддипломная) | C62: ДЗ | D62: 114 | F62: 144 | R62: 144
A63: ГИА | B63: Государственная итоговая аттестация | D63: 108 | F63: 108 | R63: 108
A64: Выполнение ВКР с 26 января по 08 февраля (всего 2 нед.) Защита ВКР с 09 по 15 февраля (всего 1 нед.) | D64: Всего чсов по учебным дисциплинам и МДК | K64: 612 | L64: 792 | M64: =SUM(M48+M36+M24) -> 576 | N64: =SUM(N48+N36+N24) -> 828 | O64: 540 | P64: 648 | Q64: 468 | R64: 252
D65: Учебная практика | O65: 36 | P65: 72 | Q65: 36
D66: Производственная практика | P66: 108 | Q66: 72
D67: Преддипломная практика | R67: 144
D68: Количество экзаменов | K68: 0 | L68: 4 | M68: 2 | N68: 4 | O68: 2 | P68: 4 | Q68: 2 | R68: 0
D69: Количество дифференцированных зачетов | K69: 3 | L69: 9 | M69: 6 | N69: 6 | O69: 3 | P69: 4 | Q69: 8 | R69: 1
D70: Количество зачетов | K70: 0 | L70: 0 | M70: 0 | N70: 0 | O70: 0 | P70: 0 | Q70: 0 | R70: 0

Sheet Лист2

Sheet Лист3
